[Event "Early-Titled-Tuesday-Blitz-September-05-2023"]
[Site "Chess.com"]
[Date "2023.09.05"]
[Round "2"]
[White "Ali_rastbod"]
[Black "Indianlad"]
[Result "0-1"]
[WhiteElo "2666"]
[BlackElo "3062"]
[TimeControl "180+1"]
[EndTime "8:16:57 PDT"]
[Termination "Indianlad won by resignation"]

1. c4 {[%clk 0:03:00.9]} 1... Nf6 {[%clk 0:02:57.7]} 2. Nc3 {[%clk 0:03:00.3]}
2... g6 {[%clk 0:02:58.3]} 3. g3 {[%clk 0:02:58.9]} 3... Bg7 {[%clk 0:02:58.8]}
4. Bg2 {[%clk 0:02:59.5]} 4... O-O {[%clk 0:02:59.5]} 5. d4 {[%clk 0:02:59.2]}
5... d6 {[%clk 0:02:59.5]} 6. e3 {[%clk 0:02:59.3]} 6... c5 {[%clk 0:02:54.3]}
7. Nge2 {[%clk 0:02:59.5]} 7... Na6 {[%clk 0:02:53.7]} 8. O-O {[%clk 0:02:59.6]}
8... Rb8 {[%clk 0:02:54.4]} 9. a3 {[%clk 0:02:55.3]} 9... Bd7 {[%clk 0:02:53.6]}
10. Rb1 {[%clk 0:02:52.3]} 10... Qc8 {[%clk 0:02:53]} 11. Re1 {[%clk 0:02:51.9]}
11... cxd4 {[%clk 0:02:46.7]} 12. Qxd4 {[%clk 0:02:49.9]} 12... Bf5 {[%clk
0:02:44]} 13. Ra1 {[%clk 0:02:43]} 13... Nc5 {[%clk 0:02:44.3]} 14. Qd1 {[%clk
0:02:37.1]} 14... Nd3 {[%clk 0:02:43.7]} 15. Rf1 {[%clk 0:02:37.6]} 15... Qxc4
{[%clk 0:02:41.8]} 16. Nd4 {[%clk 0:02:38.1]} 16... Nxc1 {[%clk 0:02:40.5]} 17.
Nxf5 {[%clk 0:02:37.6]} 17... gxf5 {[%clk 0:02:38.5]} 18. Rxc1 {[%clk 0:02:38]}
18... Qe6 {[%clk 0:02:38.2]} 19. Nd5 {[%clk 0:02:25.4]} 19... Nxd5 {[%clk
0:02:38.1]} 20. Bxd5 {[%clk 0:02:25.6]} 20... Qg6 {[%clk 0:02:37.6]} 21. Rc7
{[%clk 0:02:21.7]} 21... e6 {[%clk 0:02:32.4]} 22. Bxb7 {[%clk 0:02:18.6]} 22...
d5 {[%clk 0:02:32.5]} 23. b4 {[%clk 0:02:12.6]} 23... h5 {[%clk 0:02:18.9]} 24.
Kg2 {[%clk 0:02:07.2]} 24... h4 {[%clk 0:02:19.1]} 25. Ba6 {[%clk 0:02:07.4]}
25... Be5 {[%clk 0:02:12.7]} 26. Rxa7 {[%clk 0:01:54.7]} 26... Kg7 {[%clk
0:02:13.1]} 27. f4 {[%clk 0:01:31.2]} 27... Bf6 {[%clk 0:02:08.7]} 28. Be2
{[%clk 0:01:27.6]} 28... Rh8 {[%clk 0:02:07.4]} 29. g4 {[%clk 0:01:23.3]} 29...
Rbc8 {[%clk 0:01:44.8]} 30. Kh3 {[%clk 0:01:09.2]} 30... Rc3 {[%clk 0:01:43.5]}
31. Qd2 {[%clk 0:00:53.2]} 31... Rhc8 {[%clk 0:01:42.5]} 32. gxf5 {[%clk
0:00:43]} 32... Qxf5+ {[%clk 0:01:40.1]} 33. Bg4 {[%clk 0:00:43.4]} 33... Qe4
{[%clk 0:01:40.5]} 34. Qg2 {[%clk 0:00:29.8]} 34... Qxg2+ {[%clk 0:01:31.4]} 35.
Kxg2 {[%clk 0:00:29.7]} 35... Rxe3 {[%clk 0:01:32.3]} 36. Bh5 {[%clk 0:00:28.2]}
36... Rc2+ {[%clk 0:01:30.9]} 37. Kh1 {[%clk 0:00:27.9]} 37... Kh6 {[%clk
0:01:28.2]} 38. Bg4 {[%clk 0:00:13.7]} 38... Rd3 {[%clk 0:01:23.1]} 39. Rxf7
{[%clk 0:00:12.6]} 39... Rdd2 {[%clk 0:01:23.8]} 40. Rxf6+ {[%clk 0:00:05.8]}
40... Kg7 {[%clk 0:01:23.7]} 41. Rg6+ {[%clk 0:00:02.7]} 41... Kxg6 {[%clk
0:01:23.7]} 42. f5+ {[%clk 0:00:03.2]} 42... Kg5 {[%clk 0:01:24.4]} 43. Bf3
{[%clk 0:00:01.8]} 43... Rxh2+ {[%clk 0:01:24.2]} 44. Kg1 {[%clk 0:00:02]} 44...
exf5 {[%clk 0:01:25.1]} 45. Bxd5 {[%clk 0:00:02.2]} 45... Rhd2 {[%clk
0:01:24.7]} 46. Bf3 {[%clk 0:00:02.3]} 46... h3 {[%clk 0:01:24.9]} 47. Kh1
{[%clk 0:00:02.9]} 47... Rf2 {[%clk 0:01:24.5]} 48. Rxf2 {[%clk 0:00:02.8]}
48... Rxf2 {[%clk 0:01:24.4]} 49. Bc6 {[%clk 0:00:03.5]} 49... Kf4 {[%clk
0:01:24.9]} 0-1

[Event "Early-Titled-Tuesday-Blitz-September-05-2023"]
[Site "Chess.com"]
[Date "2023.09.05"]
[Round "2"]
[White "artooon"]
[Black "Goryachkina"]
[Result "1-0"]
[WhiteElo "3054"]
[BlackElo "2659"]
[TimeControl "180+1"]
[EndTime "8:16:57 PDT"]
[Termination "artooon won on time"]

1. e4 {[%clk 0:03:00.9]} 1... e6 {[%clk 0:02:59.7]} 2. d4 {[%clk 0:03:00.6]}
2... d5 {[%clk 0:03:00]} 3. Nd2 {[%clk 0:03:01.3]} 3... Be7 {[%clk 0:02:55.4]}
4. Ngf3 {[%clk 0:03:00.7]} 4... Nf6 {[%clk 0:02:48.7]} 5. e5 {[%clk 0:03:01]}
5... Nfd7 {[%clk 0:02:48.9]} 6. c3 {[%clk 0:03:01.2]} 6... c5 {[%clk 0:02:48]}
7. Bd3 {[%clk 0:03:01.6]} 7... Nc6 {[%clk 0:02:48.1]} 8. O-O {[%clk 0:03:01]}
8... a5 {[%clk 0:02:40.3]} 9. a4 {[%clk 0:03:00]} 9... g5 {[%clk 0:02:35]} 10.
dxc5 {[%clk 0:03:00.3]} 10... Ndxe5 {[%clk 0:02:15.5]} 11. Nxe5 {[%clk
0:03:01.2]} 11... Nxe5 {[%clk 0:02:15.1]} 12. Bb5+ {[%clk 0:03:01.7]} 12... Bd7
{[%clk 0:02:14.5]} 13. Nb3 {[%clk 0:03:01.6]} 13... Ng6 {[%clk 0:02:07.8]} 14.
Be3 {[%clk 0:02:49.2]} 14... O-O {[%clk 0:01:58.2]} 15. Qd2 {[%clk 0:02:43.2]}
15... Bc6 {[%clk 0:01:53.7]} 16. Nd4 {[%clk 0:02:37.3]} 16... Rc8 {[%clk
0:01:49.6]} 17. b4 {[%clk 0:02:30.2]} 17... Bf6 {[%clk 0:01:25.8]} 18. Rab1
{[%clk 0:02:25.7]} 18... e5 {[%clk 0:01:17.8]} 19. Nf5 {[%clk 0:02:20]} 19...
axb4 {[%clk 0:00:51.1]} 20. Rxb4 {[%clk 0:02:20.9]} 20... Nf4 {[%clk 0:00:44.6]}
21. Nd6 {[%clk 0:02:12.9]} 21... Rc7 {[%clk 0:00:43.3]} 22. Bxc6 {[%clk
0:02:03.7]} 22... bxc6 {[%clk 0:00:42.4]} 23. Rfb1 {[%clk 0:01:55.3]} 23... Ne6
{[%clk 0:00:40.5]} 24. Qc2 {[%clk 0:01:51.3]} 24... Bg7 {[%clk 0:00:33.6]} 25.
Nf5 {[%clk 0:01:49.6]} 25... Qf6 {[%clk 0:00:27.6]} 26. Rb7 {[%clk 0:01:45.6]}
26... Rxb7 {[%clk 0:00:18.4]} 27. Rxb7 {[%clk 0:01:46.5]} 27... Kh8 {[%clk
0:00:18.6]} 28. Nxg7 {[%clk 0:01:46]} 28... Kxg7 {[%clk 0:00:16.7]} 29. a5
{[%clk 0:01:45.3]} 29... d4 {[%clk 0:00:16.1]} 30. cxd4 {[%clk 0:01:46.2]} 30...
exd4 {[%clk 0:00:16.5]} 31. Bd2 {[%clk 0:01:46.8]} 31... Ra8 {[%clk 0:00:14.5]}
32. h3 {[%clk 0:01:35.3]} 32... Qe5 {[%clk 0:00:13.3]} 33. Qc4 {[%clk
0:01:35.4]} 33... Kf6 {[%clk 0:00:09.7]} 34. Rb3 {[%clk 0:01:31.2]} 34... Qxc5
{[%clk 0:00:06.6]} 35. Rf3+ {[%clk 0:01:31.9]} 35... Kg7 {[%clk 0:00:06.3]} 36.
Qd3 {[%clk 0:01:30.5]} 36... Qd5 {[%clk 0:00:05.9]} 37. Rf5 {[%clk 0:01:30.6]}
37... Qd8 {[%clk 0:00:05.5]} 38. Qg3 {[%clk 0:01:30.1]} 38... h6 {[%clk
0:00:05.3]} 39. h4 {[%clk 0:01:30.2]} 39... f6 {[%clk 0:00:04.7]} 40. Qb3 {[%clk
0:01:26.4]} 40... Qd7 {[%clk 0:00:04.7]} 41. h5 {[%clk 0:01:22.4]} 41... c5
{[%clk 0:00:04.8]} 42. Rd5 {[%clk 0:01:22.6]} 42... Qc7 {[%clk 0:00:04.8]} 43.
Qd3 {[%clk 0:01:21.8]} 43... Rb8 {[%clk 0:00:04.2]} 44. Qg6+ {[%clk 0:01:21.9]}
1-0

[Event "Early-Titled-Tuesday-Blitz-September-05-2023"]
[Site "Chess.com"]
[Date "2023.09.05"]
[Round "2"]
[White "sofaceindisguise"]
[Black "Jospem"]
[Result "0-1"]
[WhiteElo "2659"]
[BlackElo "3050"]
[TimeControl "180+1"]
[EndTime "8:16:57 PDT"]
[Termination "Jospem won by resignation"]

1. Nf3 {[%clk 0:02:59.9]} 1... c5 {[%clk 0:03:00.4]} 2. c4 {[%clk 0:03:00.8]}
2... Nc6 {[%clk 0:03:00.8]} 3. d4 {[%clk 0:03:01.1]} 3... cxd4 {[%clk
0:03:00.4]} 4. Nxd4 {[%clk 0:03:00.9]} 4... Nf6 {[%clk 0:03:01.3]} 5. Nc3 {[%clk
0:03:01]} 5... Qb6 {[%clk 0:02:59.8]} 6. e3 {[%clk 0:02:57.8]} 6... g6 {[%clk
0:02:58.2]} 7. Be2 {[%clk 0:02:57.8]} 7... Bg7 {[%clk 0:02:58.3]} 8. O-O {[%clk
0:02:58.3]} 8... O-O {[%clk 0:02:58.8]} 9. b3 {[%clk 0:02:57.8]} 9... d5 {[%clk
0:02:52.4]} 10. cxd5 {[%clk 0:02:50.1]} 10... Nxd4 {[%clk 0:02:50.5]} 11. Qxd4
{[%clk 0:02:50]} 11... Nxd5 {[%clk 0:01:40.7]} 12. Nxd5 {[%clk 0:02:40.8]} 12...
Qd6 {[%clk 0:01:36.2]} 13. Qe4 {[%clk 0:02:02.8]} 13... Bxa1 {[%clk 0:01:35.8]}
14. Nxe7+ {[%clk 0:02:02.2]} 14... Kg7 {[%clk 0:01:36.2]} 15. Nxc8 {[%clk
0:02:01.9]} 15... Raxc8 {[%clk 0:01:37.1]} 16. Qxb7 {[%clk 0:01:57]} 16... Rc7
{[%clk 0:01:36]} 17. Qa6 {[%clk 0:01:56.4]} 17... Qe5 {[%clk 0:01:20.2]} 18. Bc4
{[%clk 0:01:52.9]} 18... Rd8 {[%clk 0:01:19]} 19. Ba3 {[%clk 0:01:50.9]} 19...
Bb2 {[%clk 0:01:14.2]} 20. Bb4 {[%clk 0:01:46]} 20... Bc3 {[%clk 0:01:12.9]} 21.
Ba3 {[%clk 0:01:42.3]} 21... h5 {[%clk 0:01:12.1]} 22. h4 {[%clk 0:01:36.5]}
22... Qe4 {[%clk 0:00:58.5]} 23. Bd6 {[%clk 0:01:34.7]} 23... Rc6 {[%clk
0:00:52.8]} 24. Qb7 {[%clk 0:01:21.5]} 24... Rdxd6 {[%clk 0:00:51.3]} 25. Qxf7+
{[%clk 0:01:21]} 25... Kh6 {[%clk 0:00:47.2]} 26. g3 {[%clk 0:01:10.3]} 26...
Qf5 {[%clk 0:00:45.5]} 27. Qxa7 {[%clk 0:01:09]} 27... Qf6 {[%clk 0:00:34]} 28.
a4 {[%clk 0:01:01.7]} 28... Rd2 {[%clk 0:00:33.9]} 29. Qa8 {[%clk 0:00:58.3]}
29... Rcd6 {[%clk 0:00:31.4]} 30. a5 {[%clk 0:00:56]} 30... Rd8 {[%clk
0:00:27.7]} 31. Qa7 {[%clk 0:00:51.8]} 31... Rf8 {[%clk 0:00:27.3]} 32. Qa6
{[%clk 0:00:33.1]} 32... Qxa6 {[%clk 0:00:19.4]} 33. Bxa6 {[%clk 0:00:34]} 33...
Bxa5 {[%clk 0:00:20.2]} 34. Bc4 {[%clk 0:00:33.3]} 34... Bb6 {[%clk 0:00:20.1]}
0-1

[Event "Early-Titled-Tuesday-Blitz-September-05-2023"]
[Site "Chess.com"]
[Date "2023.09.05"]
[Round "2"]
[White "Kapibara_Warri0r"]
[Black "ShiroglanTalibov"]
[Result "0-1"]
[WhiteElo "2426"]
[BlackElo "2781"]
[TimeControl "180+1"]
[EndTime "8:17:00 PDT"]
[Termination "ShiroglanTalibov won by resignation"]

1. d4 {[%clk 0:03:00.9]} 1... Nf6 {[%clk 0:02:59.6]} 2. Nc3 {[%clk 0:02:59.4]}
2... e6 {[%clk 0:02:56.2]} 3. e4 {[%clk 0:02:59]} 3... d5 {[%clk 0:02:56.4]} 4.
e5 {[%clk 0:02:54.7]} 4... Nfd7 {[%clk 0:02:56.5]} 5. f4 {[%clk 0:02:55.6]} 5...
c5 {[%clk 0:02:56.7]} 6. Nf3 {[%clk 0:02:55.9]} 6... Nc6 {[%clk 0:02:57]} 7. Be3
{[%clk 0:02:54.7]} 7... a6 {[%clk 0:02:57.2]} 8. Qd2 {[%clk 0:02:51.6]} 8... b5
{[%clk 0:02:57.2]} 9. Be2 {[%clk 0:02:46.4]} 9... g6 {[%clk 0:02:52]} 10. O-O
{[%clk 0:02:46.2]} 10... c4 {[%clk 0:02:50.3]} 11. Rae1 {[%clk 0:02:29.4]} 11...
Nb6 {[%clk 0:02:48.9]} 12. Bf2 {[%clk 0:02:22.7]} 12... Be7 {[%clk 0:02:48.1]}
13. Nd1 {[%clk 0:02:13.8]} 13... Bd7 {[%clk 0:02:41.5]} 14. Ne3 {[%clk
0:02:13.6]} 14... Qc7 {[%clk 0:02:40.1]} 15. Bh4 {[%clk 0:02:09.4]} 15... Bxh4
{[%clk 0:02:39.5]} 16. Nxh4 {[%clk 0:02:10.1]} 16... h5 {[%clk 0:02:38.3]} 17.
Nf3 {[%clk 0:01:55.1]} 17... O-O-O {[%clk 0:02:37.8]} 18. Ng5 {[%clk 0:01:55.3]}
18... Be8 {[%clk 0:02:36.9]} 19. b3 {[%clk 0:01:50]} 19... Kb7 {[%clk
0:02:35.3]} 20. bxc4 {[%clk 0:01:47.1]} 20... bxc4 {[%clk 0:02:36.2]} 21. c3
{[%clk 0:01:45.7]} 21... Ka7 {[%clk 0:02:36.3]} 22. Rb1 {[%clk 0:01:45.6]} 22...
Rb8 {[%clk 0:02:30.5]} 23. Qc2 {[%clk 0:01:41.4]} 23... Ne7 {[%clk 0:02:29.9]}
24. Rb2 {[%clk 0:01:24.9]} 24... Ba4 {[%clk 0:02:22.9]} 25. Qb1 {[%clk 0:01:24]}
25... Nc6 {[%clk 0:02:19.6]} 26. f5 {[%clk 0:01:06.1]} 26... gxf5 {[%clk
0:02:17.5]} 27. Nxf5 {[%clk 0:01:05.9]} 27... exf5 {[%clk 0:02:14.4]} 28. Rxf5
{[%clk 0:01:06.8]} 28... Rhf8 {[%clk 0:02:06.8]} 29. Bxh5 {[%clk 0:00:41.8]}
29... Nxd4 {[%clk 0:02:00.9]} 30. cxd4 {[%clk 0:00:36.5]} 30... c3 {[%clk
0:02:01.8]} 31. Rbf2 {[%clk 0:00:30.3]} 31... c2 {[%clk 0:01:35.6]} 32. Qc1
{[%clk 0:00:30.2]} 32... Nd7 {[%clk 0:01:34.7]} 33. Rxc2 {[%clk 0:00:13.4]}
33... Bxc2 {[%clk 0:01:29.8]} 34. Rf1 {[%clk 0:00:12.6]} 34... Nxe5 {[%clk
0:01:23]} 35. dxe5 {[%clk 0:00:11.4]} 35... Qc5+ {[%clk 0:01:23.1]} 36. Kh1
{[%clk 0:00:11.1]} 36... Rb1 {[%clk 0:01:20.4]} 37. Qf4 {[%clk 0:00:11.5]} 37...
Rxf1+ {[%clk 0:00:59.2]} 38. Qxf1 {[%clk 0:00:12.4]} 38... Rb8 {[%clk
0:00:59.3]} 39. h3 {[%clk 0:00:06.1]} 39... Rb1 {[%clk 0:00:58.3]} 0-1

[Event "Early-Titled-Tuesday-Blitz-September-05-2023"]
[Site "Chess.com"]
[Date "2023.09.05"]
[Round "2"]
[White "expii"]
[Black "MathiasWomacka"]
[Result "0-1"]
[WhiteElo "2237"]
[BlackElo "2480"]
[TimeControl "180+1"]
[EndTime "8:17:01 PDT"]
[Termination "MathiasWomacka won by resignation"]

1. e4 {[%clk 0:03:00.9]} 1... c5 {[%clk 0:02:59.9]} 2. Nf3 {[%clk 0:03:00.7]}
2... d6 {[%clk 0:03:00.3]} 3. d4 {[%clk 0:03:01.3]} 3... cxd4 {[%clk 0:03:00.8]}
4. Nxd4 {[%clk 0:03:02.1]} 4... Nf6 {[%clk 0:03:00.5]} 5. Nc3 {[%clk 0:03:02.7]}
5... a6 {[%clk 0:03:00.6]} 6. g3 {[%clk 0:03:02.7]} 6... e5 {[%clk 0:03:00.3]}
7. Nde2 {[%clk 0:03:01.7]} 7... Nbd7 {[%clk 0:03:00.4]} 8. Bg2 {[%clk
0:03:02.4]} 8... b5 {[%clk 0:03:00.2]} 9. O-O {[%clk 0:03:00]} 9... Be7 {[%clk
0:02:58.2]} 10. h3 {[%clk 0:02:59.2]} 10... Bb7 {[%clk 0:02:57.9]} 11. Be3
{[%clk 0:02:58.8]} 11... Nb6 {[%clk 0:02:39]} 12. b3 {[%clk 0:02:56.3]} 12...
Rc8 {[%clk 0:02:36.9]} 13. g4 {[%clk 0:02:51.7]} 13... b4 {[%clk 0:02:25.3]} 14.
Nd5 {[%clk 0:02:50.1]} 14... Nfxd5 {[%clk 0:02:25.2]} 15. exd5 {[%clk 0:02:51]}
15... Bg5 {[%clk 0:02:21.6]} 16. Bxg5 {[%clk 0:02:40.4]} 16... Qxg5 {[%clk
0:02:20.3]} 17. Ng3 {[%clk 0:02:39.8]} 17... O-O {[%clk 0:02:14.7]} 18. Qd3
{[%clk 0:02:34.6]} 18... Qe7 {[%clk 0:02:08.2]} 19. Be4 {[%clk 0:02:23.4]} 19...
g6 {[%clk 0:02:07]} 20. Qe3 {[%clk 0:02:09.6]} 20... Nd7 {[%clk 0:02:00.2]} 21.
g5 {[%clk 0:01:52.8]} 21... f5 {[%clk 0:01:52.4]} 22. gxf6 {[%clk 0:01:50]}
22... Nxf6 {[%clk 0:01:53.1]} 23. Rad1 {[%clk 0:01:47.9]} 23... a5 {[%clk
0:01:41.3]} 24. Rd2 {[%clk 0:01:41.3]} 24... Rc3 {[%clk 0:01:30.1]} 25. Qe2
{[%clk 0:01:35.1]} 25... Nxe4 {[%clk 0:01:04.3]} 26. Qxe4 {[%clk 0:01:33.6]}
26... Qg5 {[%clk 0:00:56.7]} 27. Rfd1 {[%clk 0:01:08.8]} 27... Rf4 {[%clk
0:00:48.3]} 28. Qg2 {[%clk 0:01:04.5]} 28... Qh4 {[%clk 0:00:40.9]} 29. Re1
{[%clk 0:00:56.2]} 29... Bc8 {[%clk 0:00:39.8]} 30. Kh2 {[%clk 0:00:50.7]} 30...
Qe7 {[%clk 0:00:34.6]} 31. Re4 {[%clk 0:00:49.3]} 31... Rxe4 {[%clk 0:00:32.8]}
32. Qxe4 {[%clk 0:00:46.4]} 32... Qg5 {[%clk 0:00:28.6]} 33. Re2 {[%clk
0:00:39.8]} 33... Ba6 {[%clk 0:00:24.6]} 34. Re1 {[%clk 0:00:39.3]} 34... Qd2
{[%clk 0:00:22.8]} 35. Qg4 {[%clk 0:00:20.4]} 35... Qxf2+ {[%clk 0:00:21.2]} 36.
Kh1 {[%clk 0:00:20.6]} 36... Qxe1+ {[%clk 0:00:20.9]} 37. Kh2 {[%clk 0:00:21.5]}
37... Rxc2+ {[%clk 0:00:20.9]} 0-1

[Event "Early-Titled-Tuesday-Blitz-September-05-2023"]
[Site "Chess.com"]
[Date "2023.09.05"]
[Round "2"]
[White "angryspacevoid"]
[Black "lilleper1"]
[Result "0-1"]
[WhiteElo "2599"]
[BlackElo "2889"]
[TimeControl "180+1"]
[EndTime "8:17:02 PDT"]
[Termination "lilleper1 won on time"]

1. e4 {[%clk 0:03:00.9]} 1... c6 {[%clk 0:02:58.7]} 2. d4 {[%clk 0:02:57]} 2...
d5 {[%clk 0:02:58.5]} 3. Nc3 {[%clk 0:02:54.3]} 3... a6 {[%clk 0:02:55.2]} 4.
Nf3 {[%clk 0:02:42.5]} 4... Bg4 {[%clk 0:02:53.8]} 5. h3 {[%clk 0:02:37.1]} 5...
Bxf3 {[%clk 0:02:50.9]} 6. Qxf3 {[%clk 0:02:38]} 6... e6 {[%clk 0:02:50.6]} 7.
Be2 {[%clk 0:02:20.9]} 7... Nf6 {[%clk 0:02:49.3]} 8. O-O {[%clk 0:02:19.2]}
8... Be7 {[%clk 0:02:49.3]} 9. e5 {[%clk 0:02:16.5]} 9... Nfd7 {[%clk 0:02:49]}
10. Qg3 {[%clk 0:02:16.9]} 10... g6 {[%clk 0:02:43.9]} 11. f4 {[%clk 0:01:52.5]}
11... c5 {[%clk 0:02:26.6]} 12. dxc5 {[%clk 0:01:50.8]} 12... Nc6 {[%clk
0:02:26.2]} 13. Rd1 {[%clk 0:01:11.2]} 13... Bxc5+ {[%clk 0:02:14.4]} 14. Kh1
{[%clk 0:01:11.3]} 14... Nd4 {[%clk 0:02:09.4]} 15. Bd3 {[%clk 0:01:11.3]} 15...
Qe7 {[%clk 0:02:03.3]} 16. Be3 {[%clk 0:01:07.9]} 16... Nf5 {[%clk 0:01:58.6]}
17. Bxf5 {[%clk 0:01:06.1]} 17... gxf5 {[%clk 0:01:59.5]} 18. Rxd5 {[%clk
0:00:46]} 18... Bxe3 {[%clk 0:01:50.5]} 19. Qxe3 {[%clk 0:00:22.3]} 19... exd5
{[%clk 0:01:49.2]} 20. Nxd5 {[%clk 0:00:23.2]} 20... Qc5 {[%clk 0:01:47.8]} 21.
Nf6+ {[%clk 0:00:22.6]} 21... Ke7 {[%clk 0:01:42.2]} 22. Qg3 {[%clk 0:00:14.3]}
22... Nxf6 {[%clk 0:01:23]} 23. exf6+ {[%clk 0:00:15.2]} 23... Kd7 {[%clk
0:01:23.9]} 24. Rd1+ {[%clk 0:00:13.6]} 24... Kc7 {[%clk 0:01:24.1]} 25. Rd3
{[%clk 0:00:13.4]} 25... Kb6 {[%clk 0:01:21.7]} 26. Qf3 {[%clk 0:00:10.8]} 26...
Rab8 {[%clk 0:01:05.8]} 27. Rc3 {[%clk 0:00:08.1]} 27... Qd4 {[%clk 0:01:04.4]}
28. Rb3+ {[%clk 0:00:03.7]} 28... Ka7 {[%clk 0:01:04.5]} 29. c3 {[%clk
0:00:04.6]} 29... Qc5 {[%clk 0:01:03.6]} 30. a4 {[%clk 0:00:03.5]} 30... Rhe8
{[%clk 0:01:02.2]} 31. Qg3 {[%clk 0:00:01.6]} 31... Qe3 {[%clk 0:01:00.5]} 32.
Qh4 {[%clk 0:00:01.4]} 32... Qe1+ {[%clk 0:00:59.4]} 33. Qxe1 {[%clk 0:00:01.4]}
33... Rxe1+ {[%clk 0:01:00.3]} 34. Kh2 {[%clk 0:00:02.3]} 34... Re4 {[%clk
0:00:59.4]} 35. a5 {[%clk 0:00:01.8]} 35... Rxf4 {[%clk 0:00:59.4]} 36. Ra3
{[%clk 0:00:01.8]} 36... Re4 {[%clk 0:00:59.3]} 37. b4 {[%clk 0:00:02.2]} 37...
Re6 {[%clk 0:00:59.2]} 38. Ra1 {[%clk 0:00:02.7]} 38... Rc8 {[%clk 0:00:59.4]}
39. Rf1 {[%clk 0:00:03.6]} 39... Rxf6 {[%clk 0:00:59.6]} 40. Rf3 {[%clk
0:00:03.6]} 40... Rc4 {[%clk 0:00:59.1]} 41. Kg3 {[%clk 0:00:04]} 41... h5
{[%clk 0:00:59]} 42. h4 {[%clk 0:00:03.4]} 42... Rg6+ {[%clk 0:00:59]} 43. Kh3
{[%clk 0:00:03.9]} 43... f4 {[%clk 0:00:59.5]} 44. Rd3 {[%clk 0:00:03.1]} 44...
Rg3+ {[%clk 0:00:57.9]} 45. Rxg3 {[%clk 0:00:02.3]} 45... fxg3 {[%clk
0:00:58.8]} 0-1

[Event "Early-Titled-Tuesday-Blitz-September-05-2023"]
[Site "Chess.com"]
[Date "2023.09.05"]
[Round "2"]
[White "sebastianmarinp"]
[Black "Chernobay_Artem"]
[Result "0-1"]
[WhiteElo "2402"]
[BlackElo "2605"]
[TimeControl "180+1"]
[EndTime "8:17:02 PDT"]
[Termination "Chernobay_Artem won by resignation"]

1. d4 {[%clk 0:02:59.9]} 1... Nf6 {[%clk 0:02:58.9]} 2. c4 {[%clk 0:02:59.7]}
2... e6 {[%clk 0:02:58.5]} 3. Nf3 {[%clk 0:02:59]} 3... d5 {[%clk 0:02:57.8]} 4.
e3 {[%clk 0:02:53.7]} 4... b6 {[%clk 0:02:53.9]} 5. cxd5 {[%clk 0:02:51.1]} 5...
exd5 {[%clk 0:02:53.4]} 6. Nc3 {[%clk 0:02:50.2]} 6... Bb7 {[%clk 0:02:51.3]} 7.
Be2 {[%clk 0:02:44.7]} 7... Nbd7 {[%clk 0:02:51]} 8. O-O {[%clk 0:02:44.7]} 8...
a6 {[%clk 0:02:51]} 9. Ne5 {[%clk 0:02:32.3]} 9... Bd6 {[%clk 0:02:47.6]} 10. f4
{[%clk 0:02:31.7]} 10... O-O {[%clk 0:02:47]} 11. Bf3 {[%clk 0:02:26.5]} 11...
Re8 {[%clk 0:02:37]} 12. g4 {[%clk 0:02:17.8]} 12... Ne4 {[%clk 0:02:30.4]} 13.
Bd2 {[%clk 0:02:05.4]} 13... c5 {[%clk 0:02:04]} 14. Be1 {[%clk 0:02:01]} 14...
Qe7 {[%clk 0:01:46.3]} 15. Ne2 {[%clk 0:01:41.3]} 15... f6 {[%clk 0:01:41.6]}
16. Nxd7 {[%clk 0:01:40.7]} 16... Qxd7 {[%clk 0:01:41.8]} 17. Bxe4 {[%clk
0:01:25.1]} 17... Rxe4 {[%clk 0:01:40]} 18. Ng3 {[%clk 0:01:13.3]} 18... Rxe3
{[%clk 0:01:39.1]} 19. Bf2 {[%clk 0:01:10]} 19... Ree8 {[%clk 0:01:34.1]} 20.
Qd2 {[%clk 0:00:59.2]} 20... Qxg4 {[%clk 0:01:28.2]} 21. Be3 {[%clk 0:00:49.2]}
21... h5 {[%clk 0:01:14.1]} 22. Kh1 {[%clk 0:00:45.5]} 22... h4 {[%clk
0:01:13.5]} 23. Ne2 {[%clk 0:00:45.2]} 23... h3 {[%clk 0:01:07.1]} 24. Ng3
{[%clk 0:00:43.7]} 24... Re7 {[%clk 0:01:03.9]} 25. Rae1 {[%clk 0:00:33.8]}
25... Rae8 {[%clk 0:01:02.9]} 26. Qf2 {[%clk 0:00:27.9]} 26... cxd4 {[%clk
0:00:48.4]} 27. Bd2 {[%clk 0:00:20.9]} 27... Rxe1 {[%clk 0:00:32.5]} 28. Rxe1
{[%clk 0:00:19.8]} 28... Rxe1+ {[%clk 0:00:32.1]} 29. Bxe1 {[%clk 0:00:18.7]}
29... Bxf4 {[%clk 0:00:28.6]} 0-1

[Event "Early-Titled-Tuesday-Blitz-September-05-2023"]
[Site "Chess.com"]
[Date "2023.09.05"]
[Round "2"]
[White "borocotoajua"]
[Black "Genghis_K"]
[Result "0-1"]
[WhiteElo "2595"]
[BlackElo "2872"]
[TimeControl "180+1"]
[EndTime "8:17:05 PDT"]
[Termination "Genghis_K won by resignation"]

1. d4 {[%clk 0:02:58.8]} 1... Nf6 {[%clk 0:02:19.1]} 2. Nf3 {[%clk 0:02:52.1]}
2... g6 {[%clk 0:02:19.4]} 3. c4 {[%clk 0:02:51.6]} 3... Bg7 {[%clk 0:02:06.1]}
4. g3 {[%clk 0:02:51.2]} 4... d6 {[%clk 0:02:06.5]} 5. Bg2 {[%clk 0:02:49.9]}
5... O-O {[%clk 0:02:07.4]} 6. O-O {[%clk 0:02:45.8]} 6... Bf5 {[%clk
0:01:52.7]} 7. Nc3 {[%clk 0:02:42.4]} 7... Ne4 {[%clk 0:01:41.1]} 8. Nh4 {[%clk
0:02:41.7]} 8... Nxc3 {[%clk 0:00:51.6]} 9. bxc3 {[%clk 0:02:42.6]} 9... Bc8
{[%clk 0:00:51.9]} 10. Rb1 {[%clk 0:02:40]} 10... Nc6 {[%clk 0:00:50.6]} 11. e4
{[%clk 0:02:23.3]} 11... Na5 {[%clk 0:00:48.6]} 12. Qe2 {[%clk 0:02:18.7]} 12...
c5 {[%clk 0:00:45.8]} 13. d5 {[%clk 0:01:06]} 13... b6 {[%clk 0:00:41.9]} 14.
Nf3 {[%clk 0:00:52.6]} 14... Ba6 {[%clk 0:00:32.7]} 15. Nd2 {[%clk 0:00:52.8]}
15... Bxc3 {[%clk 0:00:32.5]} 16. Rd1 {[%clk 0:00:49.8]} 16... Qd7 {[%clk
0:00:30.8]} 17. Qd3 {[%clk 0:00:46.3]} 17... Bxd2 {[%clk 0:00:28.5]} 18. Qxd2
{[%clk 0:00:42.4]} 18... Nxc4 {[%clk 0:00:28.1]} 19. Qc3 {[%clk 0:00:42.2]}
19... f6 {[%clk 0:00:25.9]} 20. Bh6 {[%clk 0:00:36.4]} 20... Rfc8 {[%clk
0:00:25.3]} 21. Bf1 {[%clk 0:00:25.1]} 21... Qa4 {[%clk 0:00:25.7]} 22. h4
{[%clk 0:00:19.8]} 22... Ne5 {[%clk 0:00:26]} 23. Bg2 {[%clk 0:00:13.7]} 23...
b5 {[%clk 0:00:21.9]} 24. f4 {[%clk 0:00:12.8]} 24... Ng4 {[%clk 0:00:21.6]} 25.
Qf3 {[%clk 0:00:12.4]} 25... Nxh6 {[%clk 0:00:21.9]} 26. e5 {[%clk 0:00:11.8]}
26... Nf5 {[%clk 0:00:19.1]} 27. exf6 {[%clk 0:00:10.4]} 27... exf6 {[%clk
0:00:19.6]} 28. h5 {[%clk 0:00:09.6]} 28... Re8 {[%clk 0:00:19.2]} 29. hxg6
{[%clk 0:00:09.2]} 29... hxg6 {[%clk 0:00:19.8]} 30. Qg4 {[%clk 0:00:09.7]}
30... Kg7 {[%clk 0:00:20.4]} 31. Re1 {[%clk 0:00:09]} 31... Qd4+ {[%clk
0:00:20.7]} 0-1